bitfinex/quotes_ETHUSD_20241108
["timestamp","ask_amount","ask_price","bid_price","bid_amount"]
[1731106242554,0.03648475,2960.7,2960.6,1.32967263]
[1731106242924,0.7552,2960.8,2960.6,1.32967263]
[1731106243132,0.03648475,2960.7,2960.6,1.32967263]
[1731106243544,0.7552,2960.8,2960.6,1.32967263]
[1731106243750,0.03648475,2960.7,2960.6,1.32967263]
[1731106243955,0.03648475,2960.7,2960.6,11.31994054]
[1731106244171,0.7552,2960.8,2960.6,11.31994054]
[1731106246172,0.7552,2960.8,2960.6,12.64961317]
[1731106246320,0.7552,2960.8,2960.6,11.31994054]
[1731106246521,0.7552,2960.8,2960.7,11.31994054]
[1731106248119,0.7552,2960.8,2960.4,1.32967263]
[1731106248956,0.5,2961.0,2960.4,1.32967263]
[1731106248957,0.8045,2960.6,2960.4,1.32967263]
[1731106249271,0.03639794,2960.5,2960.4,1.32967263]
[1731106251175,0.03639794,2960.5,2960.4,1.87967263]
[1731106251470,1.3045,2961.0,2960.4,1.87967263]
[1731106251633,0.0360827,2960.5,2960.4,1.87967263]
[1731106251839,1.3045,2961.0,2960.4,1.87967263]
[1731106252146,0.03608753,2960.9,2960.4,1.87967263]
[1731106254762,0.03608753,2960.9,2960.5,12.64961317]
[1731106259487,1.3045,2961.0,2960.5,11.31994054]
[1731106259862,0.03266908,2960.9,2960.5,11.31994054]
[1731106265293,0.03266908,2960.9,2960.6,0.0675456]
[1731106265855,1.3045,2961.0,2960.6,0.0675456]
[1731106266059,1.3045,2961.0,2960.5,11.31994054]
[1731106266552,1.3045,2961.0,2960.6,11.31994054]
[1731106272589,1.3045,2961.0,2960.7,11.31994054]
[1731106276044,0.5,2961.0,2960.7,11.31994054]
[1731106276239,0.5,2961.0,2960.8,0.06754195]
[1731106277635,0.5,2961.0,2960.7,11.31994054]
[1731106277817,0.8287,2960.9,2960.7,11.31994054]
[1731106278540,0.8287,2960.9,2960.3,11.31994054]
[1731106280169,0.8287,2960.9,2960.1,11.31994054]
[1731106281731,0.5,2961.0,2960.1,1.87967263]
[1731106281943,0.5,2961.0,2960.7,1.32967263]
[1731106282434,0.5,2961.0,2960.7,1.39721535]
[1731106282944,0.5,2961.0,2960.7,1.32967263]
[1731106284437,0.5,2961.0,2960.6,1.49000741]
[1731106284633,0.5,2961.0,2960.6,0.70030741]
[1731106284839,0.5,2961.0,2960.7,0.06754303]
[1731106285064,0.5,2961.0,2960.5,0.70030741]
[1731106285435,0.5,2961.0,2960.6,0.06754474]
[1731106285640,0.5,2961.0,2960.6,0.70030741]
[1731106285931,0.5,2961.0,2960.6,0.76785135]
[1731106286336,0.5,2961.0,2960.6,0.06754394]
[1731106286565,0.5,2961.0,2960.6,0.76785135]
[1731106286751,0.5,2961.0,2960.6,0.06754394]
[1731106287172,0.5,2961.0,2960.6,0.76785198]
[1731106287357,0.5,2961.0,2960.4,1.05046111]
[1731106287358,0.5,2961.0,2960.5,12.02024795]
[1731106287875,0.5,2961.0,2960.5,11.31994054]
[1731106288385,0.5,2961.0,2960.6,0.06754583]
[1731106288541,0.5,2961.0,2960.5,11.31994054]
[1731106288741,0.5,2961.0,2960.6,0.06754587]
[1731106289578,0.5,2961.0,2960.5,11.31994054]
[1731106289775,0.5,2961.0,2960.6,0.0675459]
[1731106289935,0.5,2961.0,2960.5,11.31994054]
[1731106290138,0.5,2961.0,2960.6,0.0675459]
[1731106294050,0.5,2961.0,2960.5,11.31994054]
[1731106294750,0.5,2961.0,2960.5,12.02024795]
[1731106295143,0.5,2961.0,2960.5,11.31994054]
[1731106295883,0.7683,2960.9,2960.5,11.31994054]
[1731106298391,1.00086383,2960.9,2960.5,11.31994054]
[1731106299294,1.00086383,2960.9,2960.3,0.70030741]
[1731106300384,1.00086383,2960.9,2960.2,0.76786145]
[1731106300888,1.00086383,2960.9,2960.3,0.70030741]
[1731106301088,1.00086383,2960.9,2960.2,0.76786145]
[1731106301383,1.00086383,2960.9,2960.3,0.70030741]
[1731106303577,1.00086383,2960.9,2960.2,0.76786145]
[1731106303779,0.7609,2960.8,2960.2,0.70030741]
[1731106303977,0.7609,2960.7,2960.0,0.70030741]
[1731106304291,0.7609,2960.7,2959.9,12.02024795]
[1731106305582,0.7609,2960.7,2959.9,11.31994054]
[1731106308120,0.7609,2960.6,2959.7,2.02998004]
[1731106308484,0.7609,2960.6,2959.7,1.32967263]
[1731106308683,0.7609,2960.5,2959.7,1.32967263]
[1731106310316,0.7609,2960.5,2959.6,12.02024795]
[1731106310526,0.7609,2960.5,2959.6,11.31994054]
[1731106311788,1.32967263,2960.0,2959.6,9.63963686]
[1731106311994,1.32967263,2960.0,2958.9,1.75724213]
[1731106311995,0.7709,2959.9,2958.8,0.70030741]
[1731106312216,0.7709,2959.9,2958.7,10.69009797]
[1731106312217,0.7609,2959.7,2958.7,0.70030741]
[1731106312419,0.7609,2959.7,2958.6,9.63963686]
[1731106312420,0.7609,2959.6,2958.6,9.63963686]
[1731106316998,0.7609,2959.6,2958.3,9.63963686]
[1731106320643,0.7609,2959.6,2958.2,9.63963686]
[1731106320974,0.01,2959.5,2958.1,1.32967263]
[1731106321272,0.7936,2959.4,2958.1,1.32967263]
[1731106322779,0.01,2959.3,2958.1,1.32967263]
[1731106322950,0.7936,2959.2,2958.1,1.32967263]
[1731106325888,0.7936,2959.2,2957.8,1.32967263]
[1731106326786,1.32967263,2959.4,2957.8,1.32967263]
[1731106326787,0.8036,2959.1,2957.8,1.32967263]
[1731106327286,0.01,2958.9,2957.8,1.32967263]
[1731106327468,0.7936,2958.8,2957.8,1.32967263]
[1731106327644,0.7936,2958.8,2957.6,9.63963686]
[1731106329518,0.7936,2958.8,2957.4,9.63963686]
[1731106329825,0.7936,2958.8,2957.5,1.32967263]
[1731106330196,0.7936,2958.8,2957.6,0.06761539]
[1731106330895,0.7936,2958.8,2957.5,1.32967263]
[1731106335243,0.7936,2958.8,2957.6,0.06761538]
[1731106337553,0.7936,2958.8,2957.7,1.32967263]
[1731106342129,0.7936,2958.8,2957.5,9.63963686]
[1731106342479,0.7895,2958.6,2957.5,10.96930949]
[1731106346689,0.7895,2958.6,2957.5,1.32967263]
[1731106349601,0.7895,2958.6,2957.4,9.63963686]
[1731106349757,0.7895,2958.6,2957.5,1.32967263]
[1731106355572,0.7895,2958.6,2957.5,10.96930949]
[1731106356501,0.7895,2958.6,2957.5,11.6696169]
[1731106356801,0.7895,2958.6,2957.5,10.96930949]
[1731106357000,0.7895,2958.6,2957.5,11.6696169]
[1731106358488,0.7895,2958.6,2957.8,1.32967263]
[1731106358660,0.7895,2958.6,2957.9,0.06760801]
[1731106359065,0.7895,2958.6,2957.8,0.70030741]
[1731106361075,0.7895,2958.6,2957.7,0.76791322]
[1731106362073,0.7895,2958.6,2957.8,0.70030741]
[1731106362267,0.7895,2958.6,2957.7,0.76791322]
[1731106363173,0.7895,2958.6,2957.7,0.70030741]
[1731106364560,0.7895,2958.6,2957.8,0.06760879]
[1731106364968,0.7895,2958.6,2957.8,0.7679162]
[1731106365167,0.7895,2958.6,2957.8,0.06760879]
[1731106365364,0.7895,2958.6,2957.8,0.7679162]
[1731106365871,0.97418383,2958.6,2957.8,0.7679162]
[1731106366075,0.97418383,2958.6,2957.8,0.70030741]
[1731106366277,0.97418383,2958.6,2957.7,2.09758883]
[1731106367173,0.97418383,2958.6,2957.7,2.02998004]
[1731106367388,0.7833,2958.4,2957.7,2.02998004]
[1731106369484,0.7833,2958.4,2957.8,0.70030741]
[1731106372093,0.7833,2958.4,2957.9,0.70030741]
[1731106374530,0.7833,2958.4,2957.8,10.69009797]
[1731106374531,0.7833,2958.4,2958.0,0.70030741]
[1731106375331,0.7833,2958.4,2957.9,1.64087131]
[1731106375733,0.7833,2958.4,2957.9,1.57326337]
[1731106379039,0.7833,2958.4,2957.9,0.70030741]
[1731106379234,0.7833,2958.4,2957.9,1.57356609]
[1731106381538,0.7833,2958.4,2958.0,0.87325515]
[1731106381696,0.7833,2958.4,2957.9,0.70030741]
[1731106381891,0.7833,2958.4,2957.9,1.57355707]
[1731106382640,0.7833,2958.4,2958.0,0.87323317]
[1731106382836,0.7833,2958.4,2957.9,0.70030741]
[1731106383036,0.7833,2958.4,2957.9,1.57354692]
[1731106384766,0.7833,2958.4,2958.0,0.70030741]
[1731106384947,0.7833,2958.4,2957.9,1.57354692]
[1731106387225,0.7833,2958.4,2957.9,0.70030741]
[1731106387423,0.7833,2958.4,2957.9,1.57463787]
[1731106388749,0.7833,2958.4,2957.9,0.87433046]
[1731106389127,0.751,2958.2,2957.9,0.87433046]
[1731106389665,0.751,2958.2,2957.8,0.70030741]
[1731106390329,0.751,2958.2,2957.7,0.70030741]
[1731106391173,0.751,2958.2,2957.8,0.70030741]
[1731106392180,0.751,2958.2,2957.7,1.57472601]
[1731106392483,0.751,2958.2,2957.8,0.8744186]
[1731106392637,0.751,2958.2,2957.7,0.70030741]
[1731106392838,0.95024021,2958.2,2957.7,0.70030741]
[1731106393150,0.751,2958.2,2957.7,0.70030741]
[1731106396653,0.751,2958.2,2957.7,0.87449337]
[1731106396856,0.751,2958.2,2957.5,10.33994427]
[1731106397086,0.7584,2958.1,2957.6,0.87478915]
[1731106398852,0.7584,2958.1,2957.6,0.77478915]
[1731106399550,0.7584,2958.1,2957.5,9.63963686]
[1731106399982,0.7584,2958.1,2957.4,10.33994427]
[1731106400190,0.93997383,2958.1,2957.4,10.33994427]
[1731106401782,1.9973121,2958.1,2957.4,9.63963686]
[1731106401986,0.7717,2958.0,2957.4,9.63963686]
[1731106402882,0.7717,2958.0,2957.2,0.70030741]
[1731106403139,0.7717,2957.8,2957.2,0.70030741]
[1731106403291,0.7717,2957.8,2957.1,10.33994427]
[1731106403793,0.7717,2957.8,2957.1,9.63963686]
[1731106404010,0.7717,2957.8,2956.9,10.33994427]
[1731106404301,0.7717,2957.7,2956.9,9.63963686]
[1731106404502,0.7717,2957.6,2956.9,9.63963686]
[1731106404801,0.7717,2957.6,2956.9,9.53963686]
[1731106407848,0.7717,2957.4,2956.4,0.70030741]
[1731106408154,0.7717,2957.4,2956.2,11.5696169]
[1731106408155,0.7717,2957.2,2956.2,11.5696169]
[1731106408615,0.7717,2957.2,2956.2,10.86930949]
[1731106411348,0.21013726,2957.3,2956.2,10.86930949]
[1731106411815,0.21013726,2957.3,2956.2,1.32967263]
[1731106413157,0.22013726,2957.3,2956.1,9.53963686]
[1731106414331,0.7636,2957.2,2956.1,9.53963686]
[1731106415814,0.7636,2957.0,2956.1,9.53963686]
[1731106417312,0.7636,2957.0,2955.6,9.53963686]
[1731106417657,0.7636,2957.0,2955.6,10.86930949]
[1731106418661,1.32967263,2956.9,2955.6,9.53963686]
[1731106418810,0.7735,2956.8,2955.6,9.53963686]
[1731106419159,0.7635,2956.6,2955.6,9.53963686]
[1731106420268,0.21031726,2956.7,2955.6,9.53963686]
[1731106420269,1.32967263,2956.5,2955.6,9.53963686]
[1731106420581,0.7635,2956.0,2955.3,0.1380522]
[1731106420713,0.01,2956.1,2955.3,0.1380522]
[1731106420714,1.32967263,2955.8,2955.3,0.1380522]
[1731106420913,0.7635,2955.7,2955.3,0.1380522]
[1731106426269,0.7635,2955.7,2955.3,1.46772483]
[1731106426573,0.7635,2956.4,2955.4,0.7596]
[1731106426875,0.7635,2956.4,2955.4,0.82726485]
[1731106427161,0.7635,2956.4,2955.5,1.32967263]
[1731106427361,0.7635,2956.4,2955.3,1.46772483]
[1731106427667,0.7635,2956.4,2955.6,1.32967263]
[1731106427976,0.7635,2956.4,2955.4,1.32967263]
[1731106428259,0.7635,2956.4,2955.5,0.06766021]
[1731106428568,0.7635,2956.4,2955.5,0.06766034]
[1731106428736,0.7635,2956.4,2955.4,1.32967263]
[1731106432769,0.7635,2956.4,2955.5,9.53963686]
[1731106433610,0.7639,2956.3,2955.5,9.53963686]
[1731106433903,0.7639,2956.2,2955.5,9.53963686]
[1731106438495,0.7639,2956.2,2955.3,0.1380522]
[1731106440858,0.7739,2956.2,2955.3,0.1380522]
[1731106441221,0.8309,2955.8,2955.3,0.1380522]
[1731106464399,1.32967263,2955.4,2954.5,0.70030741]
[1731106464633,1.33967263,2955.6,2954.0,0.7653]
[1731106464634,0.7716,2955.0,2954.0,0.7653]
[1731106464834,0.98172726,2955.0,2954.0,0.7653]
[1731106465943,0.7716,2955.0,2954.0,0.7653]
[1731106467973,0.7716,2955.0,2954.3,1.32967263]
[1731106469038,0.7716,2955.0,2954.3,0.06768513]
[1731106470724,0.7716,2955.0,2954.3,1.39735776]
[1731106471976,4.05733827,2955.6,2954.4,0.7653]
[1731106471977,3.7716,2955.6,2954.4,0.7653]
[1731106472189,1.25449383,2955.6,2954.5,0.0676827]
[1731106472388,0.7716,2955.5,2955.1,1.32967263]
[1731106472619,0.7716,2955.5,2955.0,0.7653]
[1731106472821,0.7716,2955.5,2955.1,0.06767119]
[1731106473192,0.7716,2955.5,2955.1,1.39734382]
[1731106473931,0.3529931,2956.3,2955.1,1.39734382]
[1731106473932,0.7982,2956.1,2955.4,0.7803]
[1731106474080,0.7982,2956.1,2955.5,1.39733588]
[1731106474280,0.7982,2956.6,2955.7,1.32967263]
[1731106474476,0.18555383,2956.5,2955.8,0.06765622]
[1731106474726,0.7982,2956.6,2955.8,0.06765622]
[1731106475186,0.7982,2956.6,2955.8,0.7803]
[1731106477739,0.7982,2957.0,2955.9,0.61765025]
[1731106478030,0.7982,2957.0,2956.1,0.8185]
[1731106478180,0.7982,2957.0,2956.2,0.06764138]
[1731106478921,1.26351961,2957.7,2956.2,0.06764138]
[1731106479225,0.8224,2957.5,2956.3,0.8185]
[1731106479431,0.8224,2957.5,2956.4,0.06763912]
[1731106479782,0.8224,2957.5,2956.5,8.71443683]
[1731106480200,0.8224,2957.5,2956.6,8.78206971]
[1731106480522,0.8224,2957.5,2956.6,8.71443683]
[1731106480887,0.8224,2957.5,2956.7,0.8185]
[1731106481492,0.8224,2957.5,2956.8,0.06762899]
[1731106481690,0.8224,2957.5,2956.8,8.78206582]
[1731106482013,0.8224,2958.1,2956.9,9.53293683]
[1731106482184,0.8224,2958.1,2957.0,0.0676241]
[1731106482383,0.8224,2958.1,2957.1,0.06762189]
[1731106482785,0.8224,2958.1,2957.0,8.71443683]
[1731106483400,0.8224,2958.1,2957.1,0.06761757]
[1731106484029,0.8224,2958.1,2957.3,2.88945043]
[1731106484319,0.05074213,2958.2,2957.4,0.06761411]
[1731106485187,0.05074213,2958.2,2957.2,0.8185]
[1731106485386,0.05074213,2958.2,2957.3,0.06761439]
[1731106485828,0.8224,2958.1,2957.3,0.06761439]
[1731106486044,0.8224,2958.1,2957.4,8.71443683]
[1731106487493,0.8224,2958.1,2957.5,0.06761235]
[1731106487733,0.8224,2958.1,2957.5,8.78204918]
[1731106487934,0.8224,2958.1,2957.5,8.71443683]
[1731106488121,0.8224,2958.1,2957.6,0.06761236]
[1731106488726,0.8224,2958.1,2957.5,8.71443683]
[1731106491940,0.8224,2958.1,2957.1,3.0]
[1731106491941,0.8224,2958.1,2957.3,8.71443683]
[1731106497942,0.8224,2958.1,2957.4,8.71443683]
[1731106503782,0.8224,2958.1,2957.2,1.33235896]
[1731106503783,0.8224,2958.1,2957.5,8.71443683]
[1731106506951,0.8224,2958.1,2957.5,9.50263683]
[1731106509893,0.8224,2958.1,2957.5,0.7882]
[1731106513266,0.8224,2958.1,2957.3,9.50813683]
[1731106515560,0.8224,2958.1,2957.4,8.71443683]
[1731106517897,0.8224,2958.1,2957.5,0.06761312]
[1731106518102,0.8224,2958.1,2957.4,8.71443683]
[1731106519527,0.8224,2958.1,2957.4,9.41844324]
[1731106520112,0.8224,2958.1,2957.4,8.71443683]
[1731106520528,0.8224,2958.1,2957.4,9.41844324]
[1731106521410,0.8224,2958.1,2957.5,0.70400641]
[1731106521706,0.8224,2958.1,2957.5,9.41844324]
[1731106521930,0.8224,2958.1,2957.5,8.71443683]
[1731106522541,0.8224,2958.1,2957.5,9.41844324]
[1731106522749,0.8224,2958.1,2957.5,8.71443683]
[1731106522938,0.8224,2958.1,2957.5,9.41844324]
[1731106523407,0.8224,2958.1,2957.6,0.70400641]
[1731106523844,0.8224,2958.1,2957.5,9.41844324]
[1731106524511,0.8224,2958.1,2957.6,0.70400641]
[1731106526551,0.8224,2958.1,2957.7,0.70400641]
[1731106526853,0.8224,2958.1,2957.6,0.70400641]
[1731106527005,0.8224,2958.1,2957.5,9.77044645]
[1731106527006,0.8224,2958.1,2957.7,0.70400641]
[1731106528455,0.8224,2958.1,2957.6,0.70400641]
[1731106531421,1.88290966,2958.1,2957.6,0.70400641]
[1731106532266,1.88290966,2958.1,2957.5,9.41844324]
[1731106532556,1.88290966,2958.1,2957.6,0.70400641]
[1731106532764,1.88290966,2958.1,2957.5,9.41844324]
[1731106533719,0.8204,2958.0,2957.5,9.41844324]
[1731106534219,0.8204,2958.0,2957.6,0.70400641]
[1731106534533,0.8204,2958.0,2957.5,9.41844324]
[1731106534970,0.8204,2958.0,2957.6,0.70400641]
[1731106535394,0.8204,2958.0,2957.5,9.41844324]
[1731106536394,0.8204,2958.0,2957.6,0.70400641]
[1731106536691,0.8204,2958.0,2957.5,9.41844324]
[1731106538359,0.8204,2958.0,2957.6,0.70400641]
[1731106539257,0.8204,2958.0,2957.5,9.41844324]
[1731106541595,0.8204,2958.0,2957.6,0.70400641]
[1731106541965,0.8204,2958.0,2957.5,9.41844324]
[1731106542275,0.8204,2958.0,2957.6,0.70400641]
[1731106543508,0.8204,2958.0,2957.5,9.41844324]
[1731106543722,0.7935,2957.8,2957.5,9.41844324]
[1731106544017,2.12585896,2957.6,2957.4,8.51208745]
[1731106544309,2.20751288,2957.5,2957.4,8.51208745]
[1731106544499,0.7935,2957.5,2957.4,8.51208745]
[1731106544706,2.38814167,2957.5,2957.4,8.51208745]
[1731106545000,1.3248042,2957.5,2957.4,8.51208745]
[1731106545366,2.38763943,2957.5,2957.4,8.51208745]
[1731106546409,1.3248042,2957.5,2957.4,8.51208745]
[1731106548386,0.7935,2957.4,2956.6,8.51208745]
[1731106548689,0.7935,2957.4,2956.7,8.51208745]
[1731106549706,0.7935,2957.4,2956.8,1.33235896]
[1731106550367,0.7935,2957.4,2956.9,0.06762707]
[1731106550994,0.7935,2957.4,2956.7,10.01699386]
[1731106551192,0.7935,2957.4,2956.7,11.34935282]
[1731106552313,0.7935,2957.4,2956.8,0.70400641]
[1731106552695,0.7935,2957.4,2956.7,11.34935282]
[1731106553495,0.7935,2957.4,2956.8,0.06762652]
[1731106554303,0.7935,2957.4,2956.8,8.57971397]
[1731106554477,0.7935,2957.4,2956.8,8.51208745]
[1731106554679,0.7935,2957.4,2956.9,0.06762652]
[1731106555111,0.7935,2957.4,2956.9,1.39998548]
[1731106555407,4.06283523,2958.1,2956.9,1.39998548]
[1731106555408,0.8183,2958.1,2957.0,9.96809386]
[1731106555617,0.8183,2958.1,2957.1,8.51208745]
[1731106555833,0.8183,2958.1,2957.1,9.84444641]
[1731106557288,1.52574326,2958.1,2957.1,9.84444641]
[1731106558574,0.70744326,2958.1,2957.1,9.84444641]
[1731106558877,0.7557,2958.0,2957.1,9.84444641]
[1731106559674,0.05074213,2958.2,2957.4,1.33235896]
[1731106560090,0.05074213,2958.2,2957.4,9.84444641]
[1731106560523,0.7557,2958.1,2957.4,9.84444641]
[1731106561840,0.7557,2958.1,2957.1,1.05600962]
[1731106561841,0.7557,2958.1,2957.6,1.33235896]
[1731106561999,0.7557,2958.1,2957.7,0.06761201]
[1731106567934,0.05074213,2958.2,2957.7,0.06761201]
[1731106577339,0.05074213,2958.2,2957.5,9.28448745]
[1731106580975,0.05074213,2958.2,2957.6,0.06761156]
[1731106581481,0.05074213,2958.2,2957.5,9.28448745]
[1731106582394,0.05074213,2958.2,2957.6,0.06761154]
[1731106583948,0.05074213,2958.2,2957.5,9.28448745]
[1731106585649,0.05074213,2958.2,2957.6,0.06761146]
[1731106587916,0.05074213,2958.2,2957.5,9.28448745]
[1731106588056,0.05074213,2958.2,2957.6,0.06761139]
[1731106590362,0.05074213,2958.2,2957.5,9.28448745]
[1731106591579,0.05074213,2958.2,2957.6,0.06761127]
[1731106592580,0.05074213,2958.2,2957.5,9.28448745]
[1731106592765,0.05074213,2958.2,2957.6,0.0676112]
[1731106596214,0.7071193,2958.0,2957.5,8.51208745]
[1731106596351,0.7071193,2958.0,2957.2,0.7761]
[1731106596352,1.5018193,2957.9,2957.2,0.7761]
[1731106596558,0.96336913,2957.8,2957.2,0.7761]
[1731106598095,0.96336913,2957.8,2957.0,9.28608745]
[1731106598301,0.8274,2957.7,2957.0,0.774]
[1731106600013,1.5345193,2957.7,2957.0,0.774]
[1731106600207,0.8274,2957.7,2957.0,0.774]
[1731106600409,1.5345193,2957.7,2957.0,0.774]
[1731106600814,0.8274,2957.7,2957.0,0.774]
[1731106603344,1.11254481,2957.7,2957.0,0.774]
[1731106607812,0.8274,2957.7,2957.0,0.774]
[1731106608352,0.8274,2957.7,2956.6,0.70353335]
[1731106608353,0.8274,2957.7,2956.6,8.51208745]
[1731106608518,0.8273,2957.5,2956.6,8.51208745]
[1731106608707,0.8273,2957.4,2956.6,8.51208745]
[1731106608910,1.5344193,2957.4,2956.6,8.51208745]
[1731106609210,0.8273,2957.4,2956.6,8.51208745]
[1731106611157,1.5344193,2957.4,2956.6,8.51208745]
[1731106611368,0.8273,2957.4,2956.6,8.51208745]
[1731106613464,2.15965896,2957.4,2956.2,2.13345896]
[1731106613617,0.7614,2957.2,2956.2,0.8011]
[1731106614367,0.7614,2957.1,2956.2,0.8011]
[1731106625010,0.7614,2957.1,2955.6,2.69530596]
[1731106625011,0.8167,2956.8,2955.6,1.33235896]
[1731106625174,0.8167,2956.6,2955.7,0.06765598]
[1731106628710,4.33235896,2957.1,2956.5,1.33235896]
[1731106628711,0.8167,2957.1,2956.5,1.33235896]
[1731106628957,0.8167,2957.1,2956.6,0.06763889]
[1731106629457,0.8167,2957.1,2956.6,0.89693889]
[1731106630415,0.8167,2957.3,2956.7,1.33235896]
[1731106630622,0.8167,2958.0,2956.9,1.33235896]
[1731106630921,0.8167,2958.0,2957.0,0.89692454]
[1731106632449,0.8167,2958.0,2957.1,1.33235896]
[1731106633237,0.8167,2958.0,2957.3,1.33235896]
[1731106634527,0.8144,2958.2,2957.6,0.757]
[1731106637769,0.8144,2958.8,2957.7,1.39996597]
[1731106638074,0.8144,2958.8,2957.7,9.91205342]
[1731106638230,0.8144,2958.8,2957.7,9.84444641]
[1731106638431,0.8144,2958.8,2957.8,0.06760433]
[1731106639646,0.8144,2958.8,2957.7,9.84444641]
[1731106640541,0.8144,2958.8,2957.8,0.06760434]
[1731106640741,0.7757,2958.7,2957.8,0.06760434]
[1731106642378,0.7757,2958.7,2957.7,9.84444641]
[1731106643176,0.7757,2958.7,2957.8,8.51208745]
[1731106643580,0.7757,2958.7,2957.9,0.06760431]
[1731106643953,0.7757,2958.7,2957.8,8.51208745]
[1731106646386,0.7757,2958.7,2957.9,0.06760429]
[1731106647556,0.7757,2958.7,2957.8,8.51208745]
[1731106647782,0.7757,2958.6,2957.8,8.51208745]
[1731106648102,0.7757,2958.6,2957.7,9.84444641]
[1731106651288,0.7757,2958.6,2957.7,8.51208745]
[1731106651466,0.7757,2958.6,2957.7,9.84444641]
[1731106651869,0.7757,2958.6,2957.8,8.51208745]
[1731106656197,0.7757,2958.6,2957.8,8.49208745]
[1731106657409,0.7757,2958.6,2957.9,0.06759932]
[1731106657617,0.7757,2958.6,2957.8,8.49208745]
[1731106657913,0.7757,2958.6,2957.9,8.49208745]
[1731106663822,0.7757,2958.6,2958.0,8.49208745]
[1731106667186,0.7757,2958.6,2958.1,0.06759919]
[1731106667586,0.7757,2958.6,2958.0,9.25078745]
[1731106667787,0.7757,2958.6,2958.1,8.49208745]
[1731106668125,0.7757,2958.6,2958.1,9.82444641]
[1731106672720,0.7757,2958.6,2958.2,8.49208745]
[1731106675213,0.7757,2958.6,2958.3,8.49208745]
[1731106675414,0.7757,2958.6,2958.4,8.49208745]
[1731106678624,0.7757,2958.6,2958.5,8.49208745]
[1731106681822,0.8224,2959.1,2958.5,8.49208745]
[1731106684671,0.8224,2959.1,2958.2,0.70203128]
[1731106684672,0.8224,2959.1,2958.4,8.49208745]
[1731106685750,0.8224,2959.1,2958.4,9.25438745]
[1731106687894,0.8224,2959.1,2958.5,1.88235896]
[1731106690703,0.8224,2959.1,2958.6,8.49208745]
[1731106695794,0.8224,2959.1,2958.7,0.55]
[1731106696313,0.8224,2959.1,2958.8,8.49208745]
[1731106697080,0.0507134,2959.2,2958.8,8.49208745]
[1731106697390,0.0507134,2959.2,2959.0,0.55]
[1731106697792,0.0507134,2959.2,2959.1,9.04208745]
[1731106700890,0.8189,2960.0,2959.1,11.15434641]
[1731106701095,0.8189,2960.0,2959.2,8.49208745]
[1731106705327,0.8189,2960.0,2959.3,8.49208745]
[1731106708884,0.8189,2960.0,2959.3,9.82444641]
[1731106709091,0.8189,2960.0,2959.4,9.37665397]
[1731106709311,0.8189,2960.0,2959.4,9.30908745]
[1731106710590,0.7866,2960.6,2959.5,1.88235896]
[1731106710787,0.7866,2960.6,2959.7,1.33235896]
[1731106711333,0.7866,2960.6,2959.8,0.817]
[1731106713329,0.7866,2960.6,2959.9,0.06755664]
[1731106714351,0.7866,2960.6,2959.9,8.55964409]
[1731106714628,0.7866,2960.6,2959.9,9.82444641]
[1731106715001,0.7866,2960.6,2960.0,0.7583]
[1731106715432,0.7646,2960.9,2960.0,9.25038745]
[1731106716507,0.7646,2960.9,2960.1,8.5596373]
[1731106716707,0.7646,2960.9,2960.2,8.49208745]
[1731106716953,0.7646,2960.9,2960.3,0.0675484]
[1731106718249,0.7646,2960.9,2960.3,0.833]
[1731106720113,0.7646,2960.9,2960.3,9.32508745]
[1731106721837,0.7646,2960.9,2960.4,0.06754732]
[1731106724562,0.7646,2960.9,2960.3,9.32508745]
[1731106725036,0.5,2961.0,2960.3,10.65744641]
[1731106725238,0.5,2961.0,2960.4,0.06754326]
[1731106725670,0.7771,2960.7,2960.3,8.49208745]
[1731106725978,1.33235896,2960.8,2959.0,9.32508745]
[1731106725979,0.7771,2960.3,2959.0,9.32508745]
[1731106726146,0.2109459,2960.6,2958.9,8.49208745]
[1731106726147,0.7771,2959.9,2958.9,8.49208745]
[1731106728194,4.05863648,2960.5,2958.7,8.49208745]
[1731106728195,0.7771,2959.7,2958.7,8.49208745]
[1731106728334,0.7771,2959.7,2958.6,8.49208745]
[1731106728852,0.7771,2959.5,2958.6,8.49208745]
[1731106730792,0.7771,2959.5,2958.4,8.49208745]
[1731106731091,0.7771,2959.3,2958.4,8.49208745]
[1731106734988,0.7771,2959.3,2958.5,8.49208745]
[1731106735569,0.7771,2959.3,2958.3,8.49208745]
[1731106735570,1.33235896,2959.2,2958.3,8.49208745]
[1731106735775,0.7775,2959.0,2958.3,8.49208745]
[1731106736079,0.7775,2959.0,2958.0,8.49208745]
[1731106736847,1.33235896,2959.0,2957.8,8.49208745]
[1731106737095,0.7775,2958.7,2957.5,9.82444641]
[1731106737291,0.7775,2958.5,2957.6,8.49208745]
[1731106738093,0.7775,2958.5,2957.1,9.25198745]
[1731106738394,0.7775,2958.5,2957.3,1.33235896]
[1731106738887,0.7775,2958.5,2957.5,1.33235896]
[1731106739557,0.7775,2958.5,2957.1,12.13855983]
[1731106740176,0.7775,2958.5,2957.1,11.37865983]
[1731106742900,0.7775,2958.5,2957.0,8.49208745]
[1731106742901,0.7686,2958.3,2957.0,8.49208745]
[1731106743185,0.7686,2958.1,2957.0,8.49208745]
[1731106743400,0.7686,2958.1,2956.7,8.49208745]
[1731106746859,0.7686,2958.1,2956.8,11.37865983]
[1731106747707,0.7686,2958.1,2956.8,8.49208745]
[1731106749403,0.7686,2958.1,2957.4,2.88657238]
[1731106749706,0.7686,2958.1,2957.5,0.06761413]
[1731106750073,0.7686,2958.1,2957.5,2.95418651]
[1731106751072,0.7686,2959.0,2957.7,0.8268]
[1731106751395,0.7686,2959.0,2957.8,2.95417944]
[1731106751593,0.7686,2959.0,2957.8,2.88657238]
[1731106752382,0.7686,2959.0,2957.8,2.95417306]
[1731106755778,0.7686,2959.0,2957.9,8.49208745]
[1731106755988,0.7686,2959.0,2958.0,0.06760062]
[1731106757289,0.7686,2959.0,2958.1,0.06759721]
[1731106758203,0.7686,2959.0,2958.1,11.44625704]
[1731106758518,0.7686,2959.0,2958.1,11.37865983]
[1731106758686,0.7686,2959.0,2958.2,0.06759646]
[1731106759620,0.7686,2959.0,2958.3,9.04208745]
[1731106759777,0.7686,2959.0,2958.4,8.49208745]
[1731106760930,0.7686,2959.0,2958.5,0.06758883]
[1731106762107,0.7759,2960.2,2958.5,0.06758883]
[1731106762313,0.7759,2960.0,2958.5,8.55967628]